bitfinex/quotes_ETHUSD_20220218
["timestamp","ask_amount","ask_price","bid_price","bid_amount"]
[1645162719780,0.30489924,2901.0,2900.6,0.0246149]
[1645162719980,0.00299955,2900.9,2900.6,0.0246149]
[1645162720383,0.00299955,2900.9,2900.7,1.46919653]
[1645162720583,0.91208034,2900.9,2900.7,1.46919653]
[1645162720982,0.00489924,2901.0,2900.7,1.48170741]
[1645162721284,0.00489924,2901.0,2900.8,1.46811284]
[1645162721285,0.00299955,2900.9,2900.8,1.46811284]
[1645162721689,0.00489924,2901.3,2900.9,0.00558428]
[1645162722134,0.93786484,2901.3,2900.9,0.00558428]
[1645162722334,0.00489924,2901.3,2900.9,0.00558428]
[1645162723241,0.00489924,2901.3,2901.0,0.1723]
[1645162723437,0.0602736,2901.6,2901.0,4.76792037]
[1645162723438,0.00489924,2901.5,2901.0,4.76792037]
[1645162723739,0.0029405,2901.2,2901.0,5.92970037]
[1645162724135,0.0029405,2901.2,2901.1,1.0]
[1645162724333,0.0029405,2901.2,2901.1,0.4723]
[1645162724537,0.0602736,2901.6,2901.5,1.09127253]
[1645162724936,0.0602736,2901.6,2901.5,1.39127253]
[1645162726182,0.0602736,2901.6,2901.3,3.5]
[1645162726382,0.0602736,2901.6,2901.5,0.3]
[1645162726581,0.0602736,2901.6,2901.3,3.8]
[1645162726781,0.0602736,2901.6,2901.3,3.5]
[1645162727185,0.06307151,2901.6,2901.3,3.5]
[1645162727387,0.06307151,2901.6,2901.2,1.4781]
[1645162727686,0.06307151,2901.6,2901.4,0.86286352]
[1645162728089,0.0602736,2901.6,2901.4,0.86286352]
[1645162728286,0.06307148,2901.6,2901.4,0.86286352]
[1645162729301,0.0602736,2901.6,2901.4,0.86286352]
[1645162729527,0.06307148,2901.6,2901.4,1.16286352]
[1645162729730,0.06307148,2901.6,2901.4,0.86286352]
[1645162730027,0.06307148,2901.6,2901.2,1.1781]
[1645162730427,0.0602736,2901.6,2901.2,1.1781]
[1645162730826,0.00281483,2901.5,2901.2,1.1781]
[1645162731225,0.00281483,2901.5,2901.2,4.6781]
[1645162731625,0.0602736,2901.6,2901.2,4.6781]
[1645162731825,0.0602736,2901.6,2901.2,4.9781]
[1645162732026,0.00281486,2901.5,2901.2,4.9781]
[1645162732233,0.00281486,2901.5,2901.2,1.4781]
[1645162732487,0.00281486,2901.5,2901.2,1.1781]
[1645162732630,0.00281486,2901.5,2901.2,4.9781]
[1645162732830,0.0602736,2901.6,2901.2,4.9781]
[1645162733286,0.00281486,2901.5,2901.2,4.9781]
[1645162734083,0.0602736,2901.6,2901.2,4.9781]
[1645162734285,0.0602736,2901.6,2901.3,0.86168]
[1645162734286,0.0013076,2901.5,2901.3,0.86168]
[1645162734488,0.0013076,2901.5,2901.4,3.5]
[1645162734686,0.00522963,2901.9,2901.7,0.93661897]
[1645162734883,0.00522963,2901.9,2901.8,3.5]
[1645162735084,0.00522963,2901.9,2901.7,1.23661897]
[1645162735284,0.0439739,2902.2,2901.7,1.23661897]
[1645162738045,0.00319587,2902.1,2901.7,1.23661897]
[1645162738246,0.00319587,2902.1,2901.4,3.2697061]
[1645162738450,0.00319587,2902.1,2901.4,3.5697061]
[1645162738846,0.0439739,2902.2,2901.4,3.5697061]
[1645162739346,0.00319598,2901.9,2901.4,3.5697061]
[1645162739546,0.0018162,2901.9,2901.4,3.5697061]
[1645162739748,0.0018162,2901.9,2901.5,0.94189349]
[1645162740152,0.00489924,2902.1,2901.5,0.94189349]
[1645162740982,0.00489924,2902.1,2901.9,0.01228717]
[1645162741187,1.26148043,2902.2,2901.9,0.01228717]
[1645162741188,1.26637967,2902.2,2901.9,0.01228717]
[1645162741886,1.76537967,2902.2,2901.9,0.01228717]
[1645162742994,1.26957791,2902.2,2901.9,0.01228717]
[1645162743787,1.26637967,2902.2,2901.9,0.01228717]
[1645162743984,1.26957791,2902.2,2901.9,0.01228717]
[1645162745028,1.43847967,2902.2,2901.9,0.01228717]
[1645162745227,1.26957791,2902.2,2901.9,0.01228717]
[1645162746031,1.26637967,2902.2,2901.9,0.01228717]
[1645162746238,1.26637967,2902.2,2901.8,0.01225656]
[1645162746434,0.35207138,2902.2,2901.8,0.01225656]
[1645162746633,0.05207138,2902.2,2901.8,0.01225656]
[1645162746933,0.04717214,2902.2,2901.8,0.01225656]
[1645162747334,0.0439739,2902.2,2901.8,0.01225656]
[1645162747735,0.00319827,2902.1,2901.8,0.01225656]
[1645162748380,0.85831866,2901.9,2901.8,0.01225656]
[1645162748787,1.15831866,2901.9,2901.8,0.01225656]
[1645162750683,1.15831866,2901.9,2901.2,0.99141498]
[1645162750684,1.15831866,2901.9,2901.2,1.00368685]
[1645162750885,0.00489924,2901.8,2901.3,1.46883036]
[1645162755133,1.10394294,2901.4,2901.3,1.46883036]
[1645162755334,1.10250274,2901.7,2901.6,0.46277729]
[1645162757293,1.10250274,2901.7,2901.6,1.9315261]
[1645162757491,1.10250274,2901.7,2901.6,0.46277729]
[1645162760438,1.10250274,2901.7,2901.6,1.93156569]
[1645162760838,1.10250274,2901.7,2901.6,1.95452891]
[1645162761444,1.10250274,2901.7,2901.0,0.01]
[1645162761445,4.5,2901.6,2901.0,0.01]
[1645162761653,4.5,2901.6,2901.1,1.46893977]
[1645162761654,3.999,2901.5,2901.1,1.46893977]
[1645162761843,3.999,2901.5,2901.0,0.01]
[1645162761844,0.17719924,2901.4,2901.0,0.01]
[1645162762044,0.499,2901.3,2901.0,0.01]
[1645162762243,0.1723,2901.2,2901.0,0.01]
[1645162763278,0.1723,2901.2,2901.1,1.46911322]
[1645162763480,0.499,2901.3,2901.1,1.46911322]
[1645162763884,3.999,2901.3,2901.1,1.46911322]
[1645162764080,0.84554264,2901.2,2901.1,1.46911322]
[1645162764580,0.84554264,2901.2,2901.1,0.91481868]
[1645162764781,5.34554264,2901.2,2901.1,0.91481868]
[1645162764982,5.34554264,2901.2,2901.0,0.01]
[1645162764983,4.0,2901.1,2901.0,0.01]
[1645162765182,7.8,2901.1,2901.0,0.01]
[1645162765383,8.299,2901.1,2901.0,0.01]
[1645162765581,4.299,2901.1,2901.0,0.01]
[1645162767240,0.799,2901.1,2901.0,0.01]
[1645162767641,4.299,2901.1,2901.0,0.01]
[1645162769041,0.799,2901.1,2901.0,0.01]
[1645162771408,4.299,2901.1,2901.0,0.01]
[1645162771607,0.799,2901.1,2901.0,0.01]
[1645162771806,1.799,2901.1,2901.0,0.01]
[1645162772006,0.799,2901.1,2901.0,0.01]
[1645162772214,1.799,2901.1,2901.0,0.01]
[1645162772610,0.799,2901.1,2901.0,0.01]
[1645162776249,0.3,2901.1,2901.0,0.01]
[1645162776647,1.16214,2901.3,2901.0,0.01]
[1645162779383,0.86214,2901.3,2901.0,0.01]
[1645162779583,0.00489924,2901.4,2901.3,1.56692177]
[1645162780202,0.00489924,2901.6,2901.3,1.56692177]
[1645162780583,0.00489924,2901.6,2901.5,1.17040985]
[1645162780785,0.14288524,2901.7,2901.5,1.17040985]
[1645162781187,1.00479524,2901.7,2901.5,1.17040985]
[1645162781586,1.30479524,2901.7,2901.5,1.17040985]
[1645162782260,1.30479524,2901.7,2901.3,1.56692177]
[1645162784464,1.30479524,2901.7,2901.3,5.06692177]
[1645162784662,1.30479524,2901.7,2901.3,1.56692177]
[1645162784861,1.30479524,2901.7,2901.4,1.46888598]
[1645162785462,2.16678524,2901.7,2901.4,1.46888598]
[1645162785664,2.16678524,2901.7,2901.5,3.5]
[1645162785665,0.14288524,2901.7,2901.5,3.5]
[1645162785885,0.14288524,2901.7,2901.6,1.46888598]
[1645162786282,0.14288524,2901.7,2901.4,1.46888598]
[1645162786484,0.14288524,2901.7,2901.5,1.46888598]
[1645162786685,0.14288524,2901.7,2901.6,1.46888598]
[1645162787087,0.14288524,2901.7,2901.5,1.46888598]
[1645162787290,0.14288524,2901.7,2901.6,1.46888598]
[1645162787720,0.14288524,2901.7,2901.5,1.46888598]
[1645162789391,0.14196492,2901.7,2901.5,1.46888598]
[1645162791836,0.14196492,2901.7,2901.6,3.5]
[1645162792036,0.14196492,2901.7,2901.6,4.96888598]
[1645162792239,0.14196492,2901.7,2901.6,1.46888598]
[1645162792539,0.14196492,2901.7,2901.5,1.46888598]
[1645162792742,0.14196492,2901.7,2901.6,1.46888598]
[1645162792948,0.14196492,2901.7,2901.5,1.46888598]
[1645162793138,0.14196492,2901.7,2901.6,3.5]
[1645162793410,0.14196492,2901.7,2901.6,4.96888598]
[1645162793608,0.14196492,2901.7,2901.6,1.46888598]
[1645162794507,0.14196492,2901.7,2901.5,1.46888598]
[1645162794706,0.14196492,2901.7,2901.6,4.96888598]
[1645162794908,0.14196492,2901.7,2901.6,1.46888598]
[1645162795108,0.14196492,2901.7,2901.6,0.3]
[1645162795308,0.14196492,2901.7,2901.6,1.46888598]
[1645162795707,0.14196492,2901.7,2901.5,1.46888598]
[1645162795908,0.14196492,2901.7,2901.6,1.46888598]
[1645162796310,0.14196492,2901.7,2901.5,1.46888598]
[1645162796509,0.14196492,2901.7,2901.6,1.46888598]
[1645162797026,0.14196492,2901.7,2901.6,0.3]
[1645162797232,0.14196492,2901.7,2901.6,1.76888598]
[1645162797632,0.14196492,2901.7,2901.6,1.46888598]
[1645162798037,0.14196492,2901.7,2901.4,1.46888598]
[1645162798234,0.14196492,2901.7,2901.5,1.46888598]
[1645162798432,0.14196492,2901.7,2901.6,1.46888598]
[1645162798636,0.14196492,2901.7,2901.4,1.46888598]
[1645162799236,0.44196492,2901.7,2901.4,1.46888598]
[1645162799636,0.0030053,2902.0,2901.8,0.26283537]
[1645162800242,1.72377,2902.1,2901.8,0.26283537]
[1645162800453,0.17510546,2902.0,2901.8,0.26283537]
[1645162801380,0.86195,2901.9,2901.8,0.26283537]
[1645162801802,1.16195,2901.9,2901.8,0.26283537]
[1645162804741,1.66095,2901.9,2901.8,0.26283537]
[1645162804941,0.799,2901.9,2901.8,0.26283537]
[1645162805243,0.499,2901.9,2901.8,0.26283537]
[1645162806543,0.499,2901.9,2901.8,0.27283537]
[1645162809289,0.00300564,2902.0,2901.8,0.27283537]
[1645162809890,2.02377,2902.1,2901.8,0.27283537]
[1645162810089,0.00300566,2902.0,2901.8,0.27283537]
[1645162810489,0.499,2901.9,2901.8,0.27283537]
[1645162811390,0.6713,2901.9,2901.8,0.27283537]
[1645162811589,0.9713,2901.9,2901.8,0.27283537]
[1645162811820,0.86221,2901.7,2901.3,1.56692177]
[1645162812040,0.6713,2901.6,2901.3,1.56692177]
[1645162812243,0.88326656,2901.5,2901.3,1.56692177]
[1645162812445,0.499,2901.4,2901.3,1.56692177]
[1645162813749,1.18326656,2901.5,2901.3,1.56692177]
[1645162814143,0.3,2901.5,2901.3,1.56692177]
[1645162814546,0.86186,2901.8,2901.3,1.56692177]
[1645162814746,0.00300616,2902.0,2901.4,1.46900559]
[1645162814976,0.00300618,2902.0,2901.4,4.96900559]
[1645162815144,0.00300618,2902.0,2901.5,1.46900559]
[1645162815781,0.88638679,2902.2,2901.5,1.46900559]
[1645162815982,0.00284596,2902.0,2901.5,1.46900559]
[1645162816387,0.00284596,2902.0,2901.3,1.56692177]
[1645162816582,0.00284596,2902.0,2901.4,1.46901136]
[1645162816983,0.3,2902.1,2901.4,1.46901136]
[1645162817244,0.00487474,2902.0,2901.4,1.46901136]
[1645162817489,1.19473172,2901.6,2901.3,1.56692177]
[1645162817688,2.05674172,2901.6,2901.3,1.56692177]
[1645162817886,2.35674172,2901.6,2901.3,1.56692177]
[1645162818687,2.35674172,2901.6,2901.4,1.46905]
[1645162819094,2.35674172,2901.6,2901.3,1.56692177]
[1645162819932,1.16201,2901.6,2901.3,1.56692177]
[1645162821231,1.16201,2901.6,2901.4,1.46909417]
[1645162828461,1.72871474,2901.9,2901.6,0.40495289]
[1645162829461,2.67134262,2901.9,2901.6,0.40495289]
[1645162829661,0.8619,2901.8,2901.6,0.40495289]
[1645162830262,0.3,2901.7,2901.6,0.40495289]
[1645162830664,0.3,2901.7,2901.6,1.87396767]
[1645162833489,0.3,2901.7,2901.6,0.40495289]
[1645162834736,0.3,2901.7,2901.6,1.87399971]
[1645162838886,0.00487474,2901.9,2901.6,1.87399971]
[1645162839083,0.00281746,2902.0,2901.6,1.87399971]
[1645162839084,0.00281746,2902.0,2901.7,1.46904682]
[1645162839887,1.09631154,2902.2,2901.7,1.46904682]
[1645162840084,0.00281755,2902.0,2901.7,1.46904682]
[1645162841089,1.09631154,2902.2,2901.7,1.46904682]
[1645162841286,0.00281755,2902.0,2901.7,1.46904682]
[1645162841888,0.86184,2901.9,2901.7,1.46904682]
[1645162842142,0.3,2901.8,2901.7,1.46904682]
[1645162844140,0.0028175,2902.0,2901.7,1.46904682]
[1645162844741,0.34884864,2902.2,2901.7,1.46904682]
[1645162844968,0.00281755,2902.0,2901.7,1.46904682]
[1645162845343,0.00769229,2902.0,2901.7,1.46904682]
[1645162845784,0.00487474,2902.0,2901.7,1.46904682]
[1645162846005,0.00769229,2902.0,2901.7,1.46904682]
[1645162846986,0.00487474,2902.0,2901.7,1.46904682]
[1645162847392,0.00769229,2902.0,2901.7,1.46904682]
[1645162848188,0.00487474,2902.0,2901.7,1.46904682]
[1645162848388,0.00769229,2902.0,2901.7,1.46904682]
[1645162849535,0.00487474,2902.0,2901.7,1.46904682]
[1645162849735,4.36961229,2902.0,2901.7,0.65191705]
[1645162849940,1.16961229,2902.0,2901.6,0.40495289]
[1645162850140,3.52312,2901.9,2901.6,0.40495289]
[1645162851336,6.10948,2901.9,2901.6,0.40495289]
[1645162853683,3.5,2901.8,2901.6,0.40495289]
[1645162853885,0.499,2901.7,2901.6,0.40495289]
[1645162857345,1.499,2901.7,2901.6,0.40495289]
[1645162857576,0.499,2901.7,2901.6,0.40495289]
[1645162858749,2.88636,2901.9,2901.6,0.40495289]
[1645162859751,4.61042,2901.9,2901.6,0.40495289]
[1645162869794,4.61042,2901.9,2901.7,1.46897854]
[1645162874345,4.31042,2901.9,2901.7,1.46897854]
[1645162874552,1.01963232,2901.9,2901.7,1.46897854]
[1645162875784,0.3,2901.8,2901.7,1.46897854]
[1645162893700,1.724,2901.7,2901.1,0.00409244]
[1645162893902,1.724,2901.7,2901.0,0.01]
[1645162893903,0.499,2901.6,2901.0,0.01]
[1645162894100,2.08846,2901.5,2901.0,0.01]
[1645162894300,0.799,2901.4,2901.0,0.01]
[1645162894742,2.70652795,2901.2,2901.0,0.01]
[1645162894960,1.72444,2901.2,2901.0,0.01]
[1645162895144,0.3,2901.1,2901.0,0.01]
[1645162909094,0.799,2901.1,2901.0,0.01]
[1645162909738,1.099,2901.1,2901.0,0.01]
[1645162909940,2.099,2901.1,2901.0,0.01]
[1645162911738,1.799,2901.1,2901.0,0.01]
[1645162912343,7.099,2901.1,2901.0,0.01]
[1645162912552,5.5,2901.0,2900.4,0.00281938]
[1645162912745,0.86246,2900.8,2900.4,0.00281938]
[1645162912943,0.499,2900.7,2900.4,0.00281938]
[1645162913394,0.88332712,2900.6,2900.3,0.00409244]
[1645162913594,2.22406,2900.5,2900.3,0.00409244]
[1645162913995,2.22406,2900.5,2899.7,0.00409244]
[1645162914195,0.86254,2900.4,2899.8,1.46948128]
[1645162914397,0.3,2900.2,2899.9,0.00409244]
[1645162914596,0.86254,2900.4,2900.0,1.47230069]
[1645162914597,0.09411457,2900.4,2900.0,1.47230069]
[1645162914796,0.499,2900.3,2900.0,1.47230069]
[1645162914998,0.499,2900.3,2900.1,1.47357372]
[1645162915202,0.499,2900.3,2900.1,0.00409244]
[1645162915396,2.75019,2900.3,2899.5,0.00409244]
[1645162915598,2.75019,2900.3,2899.6,1.46960505]
[1645162915599,1.72527,2900.1,2899.6,1.46960505]
[1645162915795,1.72527,2900.1,2899.7,1.46960505]
[1645162915796,1.36163,2900.0,2899.7,1.46960505]
[1645162915998,0.87780842,2899.9,2899.8,1.47369749]
[1645162916197,1.67680842,2899.9,2899.8,1.46960505]
[1645162916398,2.67680842,2899.9,2899.8,1.47369749]
[1645162916599,2.67680842,2899.9,2899.8,0.00409244]
[1645162916800,1.72521,2899.7,2899.1,0.00409244]
[1645162917044,0.86262,2899.6,2899.2,1.46969604]
[1645162917245,0.3,2899.4,2899.3,0.00409244]
[1645162917446,0.3,2899.4,2899.3,1.47378848]
[1645162917648,0.3,2899.4,2899.3,1.46969604]
[1645162917853,0.3,2899.4,2899.3,0.00409244]
[1645162918045,0.3,2899.4,2899.3,1.46969604]
[1645162918248,0.3,2899.4,2899.3,1.47378848]
[1645162920149,0.4724,2899.4,2899.3,1.47378848]
[1645162920547,0.3,2899.4,2899.3,1.47378848]
[1645162927044,0.3,2899.4,2899.3,0.00409244]
[1645162927249,0.3,2899.4,2899.3,1.4696732]
[1645162927552,0.3,2899.4,2899.3,1.47376564]
[1645162932345,0.3,2899.4,2899.3,1.47373124]
[1645162934646,0.45760335,2899.6,2899.3,1.47373124]
[1645162934847,1.45760335,2899.6,2899.4,1.4696388]
[1645162935997,2.32022335,2899.6,2899.4,1.4696388]
[1645162936198,2.32022335,2899.6,2899.4,1.47264751]
[1645162936392,2.62022335,2899.6,2899.4,1.47264751]
[1645162937195,2.62022335,2899.6,2899.4,1.4696388]
[1645162937396,2.62022335,2899.6,2899.4,1.47264751]
[1645162938300,2.62022335,2899.6,2899.4,1.4696388]
[1645162938501,2.62022335,2899.6,2899.4,1.47264751]
[1645162939550,2.62022335,2899.6,2899.4,1.4696388]
[1645162939749,2.62022335,2899.6,2899.4,1.47264751]
[1645162940551,3.11922335,2899.6,2899.4,1.47264751]
[1645162940749,3.11922335,2899.6,2899.4,1.4696388]
[1645162940951,3.11922335,2899.6,2899.4,1.47264751]
[1645162941954,3.11922335,2899.6,2899.4,1.4696388]
[1645162942159,3.11922335,2899.6,2899.4,1.47264751]
[1645162942357,1.81922335,2899.6,2899.4,1.47264751]
[1645162942560,1.72502,2899.8,2899.4,1.47264751]
[1645162942758,1.72502,2899.8,2899.5,0.00409244]
[1645162942957,1.72502,2899.8,2899.6,1.4696388]
[1645162943160,1.72502,2899.8,2899.6,1.47373124]
[1645162943398,1.72502,2899.8,2899.6,0.00409244]
[1645162943598,1.72502,2899.8,2899.5,0.00300863]
[1645162943808,1.72537,2899.7,2899.5,0.00300863]
[1645162944199,2.72537,2899.7,2899.5,0.00300863]
[1645162944399,2.72537,2899.7,2899.2,1.4697286]
[1645162944699,2.72537,2899.7,2899.5,0.00300865]
[1645162945098,2.72537,2899.7,2899.5,1.47273725]
[1645162945499,2.72537,2899.7,2899.5,1.4697286]
[1645162945799,2.72537,2899.7,2899.5,1.47273725]
[1645162946801,2.72537,2899.7,2899.5,1.4697286]
[1645162947045,2.72537,2899.7,2899.5,1.47273725]
[1645162947254,0.499,2899.6,2899.5,1.47273725]
[1645162947854,0.499,2899.6,2899.5,1.4697286]
[1645162950260,0.799,2899.6,2899.4,0.00409244]
[1645162950459,0.799,2899.6,2898.5,0.66159756]
[1645162950460,0.1724,2899.5,2898.9,0.00409244]
[1645162950657,0.1724,2899.5,2899.4,0.00300868]
[1645162950894,0.1724,2899.5,2898.6,0.00409244]
[1645162951095,0.86289,2899.3,2898.6,0.00409244]
[1645162951297,1.18818468,2898.7,2898.6,0.00409244]
[1645162952298,0.3,2898.8,2898.5,0.66159756]
[1645162952499,0.3,2898.6,2898.5,0.66569]
[1645162952740,0.3,2898.6,2898.5,0.66159756]
[1645162952899,2.02571,2898.9,2898.5,0.66573723]
[1645162953099,2.02571,2898.9,2898.6,0.00413967]
[1645162953300,2.02571,2898.9,2898.6,0.66573723]
[1645162953501,0.9812202,2898.7,2898.5,0.66159756]
[1645162953703,0.9812202,2898.7,2898.6,0.00413967]
[1645162954544,0.3,2898.6,2898.5,0.00300924]
[1645162954742,1.3,2898.8,2898.5,0.00714891]
[1645162954743,1.0,2898.8,2898.5,0.00714891]
[1645162955042,1.0,2898.8,2898.5,0.00300924]
[1645162955239,3.22471,2898.9,2898.3,0.00413967]
[1645162955443,3.22471,2898.9,2898.5,0.00300921]
[1645162955645,0.91722396,2898.7,2898.5,0.00300921]
[1645162955945,0.6714,2898.6,2898.5,0.00300921]
[1645162956145,0.9714,2898.6,2898.5,0.00300921]
[1645162956346,0.86294,2898.5,2898.2,0.00413967]
[1645162956549,0.86294,2898.5,2898.4,0.00300921]
[1645162956953,4.36294,2898.5,2898.4,0.00300921]
[1645162957147,4.86194,2898.5,2898.4,0.00300921]
[1645162957363,2.36194,2898.5,2898.4,0.00300921]
[1645162957547,2.36194,2898.5,2898.0,0.00413967]
[1645162957848,1.36194,2898.5,2898.3,0.00300927]
[1645162958048,8.0,2898.4,2897.7,0.88018145]
[1645162958304,8.0,2898.4,2898.0,0.00411926]
[1645162958305,2.22505,2898.3,2898.0,0.00411926]
[1645162958501,2.22505,2898.3,2897.7,0.00411926]
[1645162958701,0.1724,2898.2,2897.7,0.00411926]
[1645162958901,0.1724,2898.2,2897.4,3.2815]
[1645162958902,0.499,2898.1,2897.4,3.2815]
[1645162959099,0.97669631,2897.8,2897.7,0.00411997]
[1645162959408,2.22538,2898.1,2897.4,0.00411997]
[1645162959409,0.499,2897.9,2897.4,0.00411997]
[1645162959610,0.799,2897.9,2897.2,0.65664015]
[1645162959806,1.05928,2897.8,2897.3,0.00411997]
[1645162960204,2.05928,2897.8,2897.3,0.00411997]
[1645162960604,0.97576924,2897.4,2897.3,0.00411997]
[1645162961005,2.13902924,2897.4,2897.1,0.00411997]
[1645162961407,3.13902924,2897.4,2897.0,0.00410037]
[1645162962253,6.63902924,2897.4,2897.0,0.00410037]
[1645162962452,2.22589,2897.3,2897.0,0.00410037]
[1645162962679,3.5,2897.2,2897.1,0.00300569]
[1645162962848,0.799,2897.2,2897.1,0.00300569]
[1645162963150,7.26239,2897.4,2897.1,0.00300569]
[1645162963151,0.86326,2897.4,2897.1,0.00300569]
[1645162963349,0.3,2897.2,2897.1,0.00300569]
[1645162963550,1.16326,2897.4,2896.7,0.00410037]
[1645162963750,1.16326,2897.4,2897.1,0.00311291]
[1645162964253,2.02655,2897.4,2897.1,0.00311291]
[1645162964450,0.499,2897.3,2897.1,0.00311291]
[1645162964793,0.499,2897.3,2896.7,0.00410037]
[1645162964952,0.499,2897.3,2897.1,0.00311294]
[1645162965989,0.499,2897.3,2896.7,0.00410037]
[1645162966190,0.499,2897.3,2897.1,0.00311294]
[1645162966790,1.499,2897.3,2897.1,0.00311294]
[1645162966990,0.499,2897.3,2897.1,0.00311294]
[1645162967193,1.499,2897.3,2896.7,0.00410037]
[1645162967402,1.499,2897.3,2897.1,0.00299385]
[1645162968499,1.499,2897.3,2896.7,0.00410037]
[1645162968500,0.88379814,2897.1,2896.7,0.00410037]
[1645162968697,0.86337,2897.0,2896.7,0.00410037]
[1645162968895,0.86337,2897.0,2896.4,0.00410037]
[1645162969747,0.86337,2897.0,2896.6,0.00299415]
[1645162969949,0.67959884,2897.0,2896.6,0.00299415]
[1645162970746,0.67959884,2897.0,2896.5,1.47094974]
[1645162970944,0.67959884,2897.0,2896.7,0.00299409]
[1645162971951,0.67959884,2897.0,2896.5,1.47096725]
[1645162972152,0.67959884,2897.0,2896.7,0.00300206]
[1645162973152,0.67959884,2897.0,2896.5,1.47097767]
[1645162973397,0.67959884,2897.0,2896.7,0.00300206]
[1645162973804,1.16337,2897.1,2896.7,0.00300206]
[1645162973805,0.86337,2897.1,2896.7,0.00300206]
[1645162974003,0.8632,2897.4,2896.7,0.00300206]
[1645162974403,0.8632,2897.4,2896.5,1.47094092]
[1645162974600,0.8632,2897.4,2896.9,0.00300194]
[1645162974801,2.22543,2897.5,2897.4,0.70576569]
[1645162975001,3.51843745,2897.5,2897.4,0.70576569]
[1645162975400,4.51843745,2897.5,2897.4,0.70576569]
[1645162976406,4.81843745,2897.5,2897.4,0.70576569]
[1645162976902,4.99083745,2897.5,2897.4,0.70576569]
[1645162977952,4.69083745,2897.5,2897.4,0.70576569]
[1645162978455,4.81843745,2897.5,2897.4,0.70576569]
[1645162978855,4.51843745,2897.5,2897.4,0.70576569]
[1645162981797,5.20698095,2897.5,2897.3,0.00300119]
[1645162981999,1.3,2897.4,2897.3,0.00300119]
[1645162982697,1.3,2897.4,2896.8,0.00410037]
[1645162982921,1.17285095,2896.9,2896.8,0.00410037]
[1645162983398,1.47285095,2896.9,2896.8,0.00410037]
[1645162983998,1.47285095,2896.9,2896.4,0.00410037]
[1645162984197,1.47285095,2896.9,2896.7,0.00300153]
[1645162985245,1.47285095,2896.9,2896.6,0.00410037]
[1645162985549,1.47285095,2896.9,2896.7,0.00300156]
[1645162986346,1.47285095,2896.9,2896.6,0.00410037]
[1645162986545,1.47285095,2896.9,2896.7,0.00300158]
[1645162987549,3.19968095,2896.9,2896.7,1.47098391]
[1645162987850,0.86349,2896.8,2896.7,0.00300158]
[1645162988058,0.86349,2896.8,2896.7,0.00710195]
[1645162988295,0.86349,2896.8,2896.7,0.00300158]
[1645162988696,0.86349,2896.8,2896.3,1.47101953]
[1645162988896,0.86349,2896.8,2896.4,0.00410037]
[1645162989098,0.86349,2896.8,2896.6,0.0030016]
[1645162989298,1.7269,2896.8,2896.6,0.0030016]
[1645162989500,0.3,2896.7,2896.6,0.00710197]
[1645162989701,0.3,2896.7,2896.6,0.0030016]
[1645162989899,0.3,2896.7,2896.3,1.47105334]
[1645162990097,0.3,2896.7,2896.4,0.00410037]
[1645162990300,0.3,2896.7,2896.5,1.474055]
[1645162990800,0.3,2896.7,2896.6,1.47105334]
[1645162991605,0.3,2896.7,2896.5,0.00300166]
[1645162992250,0.3,2896.7,2896.5,1.474055]
[1645162992450,0.3,2896.7,2896.6,1.47105334]
[1645162993048,0.3,2896.7,2896.5,0.00300169]
[1645162993608,0.3,2896.7,2896.5,1.47105334]
[1645162993749,0.3,2896.7,2896.6,1.47105334]
[1645162994148,0.3,2896.7,2896.5,0.0030017]
[1645162994848,0.3,2896.7,2896.5,1.47105334]
[1645162995050,0.45776759,2896.8,2896.6,1.47105334]
[1645162995249,0.45776759,2896.8,2896.6,1.47515371]
[1645162995450,0.45776759,2896.8,2896.7,1.47105334]
[1645162995651,0.45776759,2896.8,2896.7,1.47515371]
[1645162996298,1.32117759,2896.8,2896.7,1.47515371]
[1645162996498,1.62117759,2896.8,2896.7,1.47515371]
[1645162997504,1.32117759,2896.8,2896.7,1.47515371]
[1645162997711,2.9681,2897.9,2896.9,5.0]
[1645162997905,0.1726,2897.9,2897.0,4.97515371]
[1645162998107,0.1724,2898.2,2897.1,1.47105334]
[1645162998306,0.1724,2898.7,2897.2,3.5]
[1645162998511,0.1724,2898.7,2897.3,1.47105334]
[1645162998706,4.65506,2898.9,2897.5,1.00425336]
[1645162998707,0.9895921,2898.5,2897.5,1.00425336]
[1645162998906,0.1724,2899.3,2897.8,5.0]
[1645162999103,3.08619564,2899.6,2897.9,4.97105334]
[1645162999104,0.1724,2899.5,2897.9,4.97105334]
[1645162999302,0.86269,2899.4,2898.0,1.47105334]
[1645162999553,0.86269,2899.4,2898.1,3.5]
[1645162999750,0.86269,2899.4,2898.2,1.47105334]
[1645162999950,0.95901486,2899.2,2898.3,3.5]
[1645163000151,2.12179486,2899.2,2898.4,1.47105334]
[1645163000351,2.12179486,2899.2,2898.2,0.00300088]
[1645163000751,0.1724,2899.1,2897.8,1.47050073]
[1645163001003,1.43141486,2899.2,2897.8,1.47050073]
[1645163001160,0.96363763,2898.4,2897.8,1.47050073]
[1645163001550,1.26363763,2898.4,2897.8,1.47050073]
[1645163002757,0.96363763,2898.4,2897.8,1.77050073]
[1645163003099,0.96363763,2898.4,2897.9,1.47050073]
[1645163003494,0.3,2898.6,2898.0,0.0029983]
[1645163003901,1.16279,2898.9,2898.0,0.0029983]
[1645163004502,0.87937332,2898.6,2897.9,1.47050073]
[1645163004700,0.87937332,2898.6,2898.2,0.00311014]
[1645163004900,1.17937332,2898.6,2898.2,0.00311014]
[1645163005698,1.17937332,2898.6,2897.9,1.47050073]
[1645163005899,1.17937332,2898.6,2898.2,0.00311011]
[1645163006900,2.90514332,2898.6,2898.1,1.47050073]
[1645163007148,2.90514332,2898.6,2898.2,0.00311011]
[1645163007547,1.17937332,2898.6,2898.2,0.00311011]
[1645163008149,1.17937332,2898.6,2898.1,1.47050073]
[1645163008371,1.17937332,2898.6,2898.2,0.0029907]
[1645163008854,3.5,2898.5,2898.0,0.027283]
[1645163009050,3.999,2898.5,2898.0,0.027283]
[1645163009253,2.58954,2898.4,2898.0,0.027283]
[1645163009452,0.1724,2898.3,2898.0,0.027283]
[1645163009650,0.4724,2898.3,2898.0,0.027283]
[1645163010058,1.11359907,2898.1,2898.0,0.027283]
[1645163010254,0.3,2898.1,2898.0,0.027283]
[1645163010653,2.02614,2898.2,2898.0,0.027283]
[1645163010904,3.999,2898.1,2898.0,0.027283]
[1645163011101,3.999,2898.1,2897.3,0.0312295]